fUSD/lending_fUSD_20240329
["ID","MTS","AMOUNT","RATE_DAILY","PERIOD"]
[320940243,1711717892180,-999.6,0.000633,120]
[320940244,1711717892190,-4874.31,0.00063371,6]
[320940245,1711717892199,-33211.77,0.00063371,6]
[320940246,1711717892209,-322.0,0.000635,120]
[320940247,1711717892218,-2223.62731424,0.00063508,120]
[320940248,1711717892228,-1392.62580325,0.00063508,120]
[320940249,1711717892237,-566.66777425,0.00063508,120]
[320940250,1711717892247,-500.0,0.00063585,90]
[320940251,1711717892256,-258.4,0.00063671,120]
[320940252,1711717892266,-300.0,0.000637,120]
[320940253,1711717892275,-1056.47,0.00063807,2]
[320940254,1711717892285,-150.0,0.00063856,120]
[320940255,1711717892293,-151.0,0.00063863,120]
[320940256,1711717892303,-200.0,0.00063987,4]
[320940257,1711717892313,-92707.49487105,0.00064,30]
[320940258,1711717892322,-2000.0,0.00064,7]
[320940259,1711717892331,-8930.00734664,0.00064,30]
[320940260,1711717892342,-6132.60037185,0.00064,2]
[320940261,1711717892351,-221.79,0.00064,14]
[320940262,1711717892361,-322.0,0.00064,120]
[320940263,1711717892370,-30926.71,0.00064,120]
[320940264,1711717892380,-2223.62731424,0.00064006,120]
[320940265,1711717892390,-1392.62580325,0.00064006,120]
[320940266,1711717892411,-566.66777425,0.00064006,120]
[320940267,1711717892428,-1228.11,0.00064109,120]
[320940268,1711717892446,-305.56,0.0006412,120]
[320940269,1711717892465,-500.0,0.00064133,90]
[320940270,1711717892480,-258.4,0.00064274,120]
[320940271,1711717892497,-999.6,0.000643,120]
[320940272,1711717892514,-150.0,0.00064314,120]
[320940273,1711717892530,-4593.24758984,0.000644,120]
[320940274,1711717892548,-300.0,0.000645,42]
[320940275,1711717892564,-322.0,0.000645,120]
[320940276,1711717892582,-2223.62731424,0.00064505,120]
[320940277,1711717892603,-1392.62580325,0.00064505,120]
[320940278,1711717892621,-566.66777425,0.00064505,120]
[320940279,1711717892634,-500.0,0.00064516,120]
[320940280,1711717892652,-999.6,0.000646,120]
[320940281,1711717892669,-500.0,0.00064681,90]
[320940282,1711717892684,-300.0,0.000647,120]
[320940283,1711717892699,-150.0,0.00064724,30]
[320940284,1711717892714,-42571.77498196,0.000648,5]
[320940285,1711717892729,-150.0,0.00064813,30]
[320940286,1711717892743,-258.4,0.00064877,120]
[320940287,1711717892758,-56363.78209006,0.000649,120]
[320940288,1711717892772,-1228.11,0.00064931,120]
[320940289,1711717892787,-804.56338097,0.00064985,120]
[320940290,1711717892801,-200.0,0.00064987,4]
[320940291,1711717892816,-150.0,0.00064993,30]
[320940292,1711717892830,-1000.0,0.00064999,120]
[320940293,1711717892850,-13830.91586461,0.00065,120]
[320940294,1711717892866,-2122.92,0.00065,99]
[320940295,1711717892880,-1830.24635108,0.00065,30]
[320940296,1711717892895,-29129.62911445,0.00065,120]
[320940297,1711717892909,-52146.89619046,0.00065,120]
[320940298,1711717892925,-1360627.22507342,0.00065,120]
[320940299,1711717892939,-4001.68822264,0.00065,120]
[320940300,1711717892954,-3758.14085299,0.00065,120]
[320940301,1711717892969,-750.0,0.00065,120]
[320940302,1711717892983,-750.0,0.00065,120]
[320940303,1711717892998,-750.0,0.00065,120]
[320940304,1711717893012,-750.0,0.00065,120]
[320940305,1711717893026,-750.0,0.00065,120]
[320940306,1711717893041,-750.0,0.00065,120]
[320940307,1711717893056,-750.0,0.00065,120]
[320940308,1711717893070,-750.0,0.00065,120]
[320940309,1711717893086,-750.0,0.00065,120]
[320940310,1711717893100,-288.35851084,0.00065,31]
[320940311,1711717893114,-151.446256,0.00065,120]
[320940312,1711717893128,-213.592012,0.00065,120]
[320940313,1711717893141,-322.0,0.00065,120]
[320940314,1711717893156,-2223.62731424,0.00065004,120]
[320940315,1711717893170,-1392.62580325,0.00065004,120]
[320940316,1711717893185,-566.66777425,0.00065004,120]
[320940317,1711717893200,-150.0,0.00065046,30]
[320940318,1711717893214,-150.0,0.00065082,30]
[320940319,1711717893228,-150.0,0.00065103,30]
[320940320,1711717893242,-151.0,0.00065123,120]
[320940321,1711717893256,-150.0,0.00065167,30]
[320940322,1711717893270,-300.0,0.00065171,30]
[320940323,1711717893284,-150.0,0.00065226,30]
[320940324,1711717893298,-500.0,0.00065229,90]
[320940325,1711717893312,-150.0,0.00065242,30]
[320940326,1711717893326,-150.0,0.00065253,30]
[320940327,1711717893341,-698.31841545,0.00065267,120]
[320940328,1711717893354,-150.0,0.00065282,30]
[320940329,1711717893369,-150.0,0.00065287,30]
[320940330,1711717893383,-150.0,0.00065341,30]
[320940331,1711717893397,-150.0,0.00065353,30]
[320940332,1711717893411,-150.0,0.00065354,30]
[320940333,1711717893425,-150.0,0.00065398,30]
[320940334,1711717893440,-150.0,0.00065414,30]
[320940335,1711717893454,-150.0,0.00065421,30]
[320940336,1711717893468,-347.77,0.00065425,120]
[320940337,1711717893483,-150.0,0.00065437,30]
[320940338,1711717893496,-150.0,0.00065444,30]
[320940339,1711717893511,-150.0,0.00065461,30]
[320940340,1711717893664,-258.4,0.00065479,120]
[320940341,1711717893677,-150.0,0.00065496,30]
[320940342,1711717893687,-24999.999999,0.000655,120]
[320940343,1711717893697,-18784.43851306,0.000655,120]
[320940344,1711717893707,-77059.03781131,0.000655,120]
[320940345,1711717893716,-300.0,0.000655,43]
[320940346,1711717893726,-322.0,0.000655,120]
[320940347,1711717893735,-2223.62731424,0.00065503,120]
[320940348,1711717893744,-1392.62580325,0.00065503,120]
[320940349,1711717893756,-566.66777425,0.00065503,120]
[320940350,1711717893765,-150.0,0.00065517,30]
[320940351,1711717893774,-150.0,0.00065519,30]
[320940352,1711717893784,-150.0,0.00065564,30]
[320940353,1711717893794,-150.0,0.00065574,30]
[320940354,1711717893804,-150.0,0.00065578,30]
[320940355,1711717893813,-583.234794,0.0006558,120]
[320940356,1711717893822,-3712.37049802,0.000656,60]
[320940357,1711717893832,-11778.74709487,0.000656,30]
[320940358,1711717893843,-999.6,0.000656,120]
[320940359,1711717893853,-150.0,0.00065607,30]
[320940360,1711717893863,-150.0,0.00065612,30]
[320940361,1711717893873,-243.32970923,0.00065642,30]
[320940362,1711717893883,-150.0,0.00065643,30]
[320940363,1711717893893,-150.0,0.00065688,30]
[320940364,1711717893902,-150.0,0.0006569,30]
[320940365,1711717893913,-300.0,0.000657,120]
[320940366,1711717893923,-150.0,0.000657,30]
[320940367,1711717893933,-150.0,0.00065748,30]
[320940368,1711717893943,-500.0,0.00065753,120]
[320940369,1711717893952,-521.88360772,0.00065753,120]
[320940370,1711717893962,-500.0,0.00065753,120]
[320940371,1711717893971,-500.0,0.00065753,120]
[320940372,1711717893981,-500.0,0.00065753,120]
[320940373,1711717893991,-500.0,0.00065753,120]
[320940374,1711717894001,-500.0,0.00065753,120]
[320940375,1711717894011,-500.0,0.00065753,120]
[320940376,1711717894020,-500.0,0.00065753,120]
[320940377,1711717894030,-500.0,0.00065753,120]
[320940378,1711717894040,-500.0,0.00065753,120]
[320940379,1711717894049,-500.0,0.00065753,120]
[320940380,1711717894059,-500.0,0.00065753,120]
[320940381,1711717894069,-500.0,0.00065753,120]
[320940382,1711717894079,-500.0,0.00065753,120]
[320940383,1711717894094,-500.0,0.00065753,120]
[320940384,1711717894104,-500.0,0.00065753,120]
[320940385,1711717894114,-500.0,0.00065753,120]
[320940386,1711717894124,-500.0,0.00065753,120]
[320940387,1711717894133,-500.0,0.00065753,120]
[320940388,1711717894143,-500.0,0.00065753,120]
[320940389,1711717894153,-599.07,0.00065753,120]
[320940390,1711717894163,-1228.11,0.00065753,120]
[320940391,1711717894172,-1000.0,0.00065753,30]
[320940392,1711717894182,-500.0,0.00065777,90]
[320940393,1711717894192,-150.0,0.00065779,60]
[320940394,1711717894202,-150.0,0.00065805,60]
[320940395,1711717894212,-150.0,0.00065823,60]
[320940396,1711717894221,-150.0,0.00065829,60]
[320940397,1711717894231,-164.7886302,0.00065835,120]
[320940398,1711717894240,-150.0,0.00065837,60]
[320940399,1711717894250,-209098.23430649,0.0006587,120]
[320940400,1711717894259,-150.0,0.00065882,60]
[320940401,1711717894269,-150.0,0.00065894,60]
[320940402,1711717894278,-999.6,0.000659,120]
[320940403,1711717894287,-150.0,0.00065935,60]
[320940404,1711717894297,-150.0,0.00065937,60]
[320940405,1711717894306,-150.0,0.00065945,60]
[320940406,1711717894316,-150.0,0.00065949,60]
[320940407,1711717894325,-150.0,0.00065951,60]
[320940408,1711717894334,-200.0,0.00065967,30]
[320940409,1711717894348,-150.0,0.00065971,60]
[320940410,1711717894357,-150.0,0.00065983,60]
[320940411,1711717894368,-150.0,0.00065986,60]
[320940412,1711717894377,-150.0,0.00065996,60]
[320940413,1711717894387,-1000.0,0.00065999,120]
[320940414,1711717894398,-359.54503523,0.00066,120]
[320940415,1711717894407,-151.212305,0.00066,7]
[320940416,1711717894417,-500.0,0.00066,120]
[320940417,1711717894427,-150.0,0.00066,60]
[320940418,1711717894437,-150.0,0.00066,60]
[320940419,1711717894446,-322.0,0.00066,120]
[320940420,1711717894456,-2223.62731424,0.00066001,120]
[320940421,1711717894466,-1392.62580325,0.00066001,120]
[320940422,1711717894475,-566.66777425,0.00066001,120]
[320940423,1711717894484,-150.0,0.00066006,60]
[320940424,1711717894494,-150.0,0.00066008,60]
[320940425,1711717894503,-1221.5358701,0.00066037,4]
[320940426,1711717894512,-150.0,0.00066076,60]
[320940427,1711717894522,-150.0,0.00066079,60]
[320940428,1711717894531,-258.4,0.00066082,120]
[320940429,1711717894540,-150.0,0.00066092,60]
[320940430,1711717894550,-150.0,0.00066101,60]
[320940431,1711717894560,-200.0,0.00066117,120]
[320940432,1711717894569,-1500.0,0.00066122,60]
[320940433,1711717894579,-150.0,0.00066125,60]
[320940434,1711717894590,-150.0,0.00066144,60]
[320940435,1711717894599,-150.0,0.00066154,60]
[320940436,1711717894608,-150.0,0.00066158,60]
[320940437,1711717894617,-502.4817,0.00066167,2]
[320940438,1711717894626,-302.30794069,0.00066176,60]
[320940439,1711717894636,-1463.10067746,0.00066184,2]
[320940440,1711717894647,-150.0,0.00066199,60]
[320940441,1711717894657,-150.0,0.00066202,60]
[320940442,1711717894667,-150.0,0.00066202,60]
[320940443,1711717894679,-150.0,0.00066207,60]
[320940444,1711717894688,-152.10412595,0.00066213,60]
[320940445,1711717894698,-150.0,0.00066217,60]
[320940446,1711717894709,-150.0,0.00066232,60]
[320940447,1711717894718,-2000.0,0.00066266,14]
[320940448,1711717894728,-150.0,0.00066284,60]
[320940449,1711717894737,-150.0,0.00066297,60]
[320940450,1711717894748,-150.0,0.00066323,60]
[320940451,1711717894759,-409.14705584,0.00066325,90]
[320940452,1711717894769,-150.0,0.0006635,60]
[320940453,1711717894778,-150.0,0.0006635,60]
[320940454,1711717894788,-150.0,0.00066352,60]
[320940455,1711717894797,-150.0,0.00066353,60]
[320940456,1711717894807,-150.0,0.00066358,60]
[320940457,1711717894816,-150.0,0.00066359,60]
[320940458,1711717894826,-150.0,0.00066364,60]
[320940459,1711717894836,-150.0,0.00066377,60]
[320940460,1711717894848,-151.0,0.00066384,120]
[320940461,1711717894857,-165.0,0.0006639,120]
[320940462,1711717894867,-150.0,0.000664,60]
[320940463,1711717894876,-150.0,0.00066423,60]
[320940464,1711717894885,-150.0,0.00066429,60]
[320940465,1711717894896,-150.0,0.00066445,60]
[320940466,1711717894906,-1500.0,0.00066477,60]
[320940467,1711717894917,-150.0,0.00066479,60]
[320940468,1711717894926,-150.0,0.0006648,60]
[320940469,1711717894935,-150.0,0.00066482,60]
[320940470,1711717894946,-623028.14119655,0.0006649,21]
[320940471,1711717894956,-155.455411,0.0006649,120]
[320940472,1711717894965,-151.0,0.0006649,120]
[320940473,1711717894974,-151.0,0.0006649,120]
[320940474,1711717894984,-151.0,0.0006649,120]
[320940475,1711717894993,-151.0,0.0006649,120]
[320940476,1711717895003,-151.0,0.0006649,120]
[320940477,1711717895013,-151.0,0.0006649,120]
[320940478,1711717895023,-151.0,0.0006649,120]
[320940479,1711717895033,-151.0,0.0006649,30]
[320940480,1711717895043,-151.0,0.0006649,30]
[320940481,1711717895053,-150.0,0.00066498,60]
[320940482,1711717895063,-479.0,0.000665,50]
[320940483,1711717895073,-300.0,0.000665,44]
[320940484,1711717895084,-151.0,0.000665,7]
[320940485,1711717895097,-1317.160699,0.000665,120]
[320940486,1711717895107,-151.0,0.000665,120]
[320940487,1711717895118,-151.0,0.000665,120]
[320940488,1711717895128,-151.0,0.000665,120]
[320940489,1711717895138,-151.0,0.000665,120]
[320940490,1711717895148,-322.0,0.000665,120]
[320940491,1711717895159,-1017.0,0.000665,14]
[320940492,1711717895169,-2224.12,0.000665,120]
[320940493,1711717895180,-1393.12,0.000665,120]
[320940494,1711717895190,-567.16,0.000665,120]
[320940495,1711717895200,-150.0,0.00066501,60]
[320940496,1711717895210,-1500.0,0.00066519,60]
[320940497,1711717895220,-150.0,0.00066519,60]
[320940498,1711717895230,-1221.5358701,0.00066554,4]
[320940499,1711717895240,-1221.5358701,0.00066554,4]
[320940500,1711717895251,-1221.5358701,0.00066554,4]
[320940501,1711717895261,-1221.5358701,0.00066554,4]
[320940502,1711717895270,-1221.5358701,0.00066554,4]
[320940503,1711717895279,-250.0,0.0006657,90]
[320940504,1711717895289,-464.73441725,0.0006657,90]
[320940505,1711717895298,-1228.11,0.00066575,120]
[320940506,1711717895308,-872.31776,0.0006658,120]
[320940507,1711717895317,-1463.10067746,0.00066588,2]
[320940508,1711717895327,-69127.08945482,0.00066599,7]
[320940509,1711717895339,-1890.16563071,0.00066599,120]
[320940510,1711717895349,-168253.07224744,0.000666,60]
[320940511,1711717895646,-1838986.71180789,0.000666,60]
[320940512,1711717895799,-1086.00452655,0.00049589,120]
[320940513,1711717895819,-161.83598417,0.00042,2]
[320940514,1711717895830,-89.15547345,0.00049589,120]
[320940515,1711717895842,-404.69054626,0.0005452,120]
[320940516,1711717896034,-161.83598417,0.00042,2]
[320940517,1711717896045,-161.83598417,0.00042,2]
[320940518,1711717896055,-161.83598417,0.00042,2]
[320940519,1711717896065,-161.83598417,0.00042,2]
[320940520,1711717896074,-161.83598417,0.00042,2]
[320940521,1711717896084,-161.83598417,0.00042,2]
[320940522,1711717896096,-161.83598417,0.00042,2]
[320940523,1711717896106,-161.83598417,0.00042,2]
[320940524,1711717896117,-161.83598417,0.00042,2]
[320940525,1711717896127,-500.0,0.00049315,120]
[320940526,1711717896137,-842.73,0.00049315,120]
[320940527,1711717896148,-556.19,0.00049315,120]
[320940528,1711717896158,-842.73,0.00049589,120]
[320940529,1711717896168,-556.19,0.00049589,120]
[320940530,1711717896177,-1175.16,0.00049863,120]
[320940531,1711717896188,-15.4090902,0.00049863,120]
[320940532,1711717896201,-827.3209098,0.00049863,120]
[320940533,1711717896211,-556.19,0.00049863,120]
[320940534,1711717896220,-186.91842155,0.00050136,120]
[320940535,1711717896904,-161.83598417,0.00042,2]
[320940536,1711717896914,-988.24157845,0.00050136,120]
[320940537,1711717896923,-842.73,0.00050136,120]
[320940538,1711717896933,-556.19,0.00050136,120]
[320940539,1711717896942,-1175.16,0.0005041,120]
[320940540,1711717896953,-842.73,0.0005041,120]
[320940541,1711717896962,-1175.16,0.00050684,120]
[320940542,1711717896972,-1175.16,0.00050958,120]
[320940543,1711717896983,-1175.16,0.00051232,120]
[320940544,1711717896993,-508.91,0.0005315,120]
[320940545,1711717897002,-508.91,0.00053424,120]
[320940546,1711717897012,-508.91,0.00053698,120]
[320940547,1711717897021,-508.91,0.00053972,120]
[320940548,1711717897031,-508.91,0.00054246,120]
[320940549,1711717897041,-525.52945374,0.0005452,120]
[320940550,1711717897051,-508.91,0.0005452,120]
[320940551,1711717897060,-930.22,0.00054794,120]
[320940552,1711717897070,-508.91,0.00054794,120]
[320940553,1711717897079,-930.22,0.00055068,120]
[320940554,1711717897089,-930.22,0.00055342,120]
[320940555,1711717897099,-930.36763241,0.00055616,120]
[320940556,1711717897108,-1318.19005954,0.00061014,120]
[320940557,1711717897118,-1318.19005954,0.00061512,120]
[320940558,1711717897127,-1318.19005954,0.00062011,120]
[320940559,1711717897137,-840154.75576687,0.000666,60]
[320940560,1711717897152,-268407.43750253,0.000666,60]
[320940561,1711717897295,-277.06448889,0.00051506,120]
[320940562,1711717897343,-161.83598417,0.00042,2]
[320940563,1711717897353,-187.01903992,0.00051506,120]
[320940564,1711717897369,-556.19,0.0005041,120]
[320940565,1711717897378,-74.215,0.00051506,120]
[320940566,1711717897781,-161.83598417,0.00042,2]
[320940567,1711717897791,-2.16685705,0.00042,2]
[320940568,1711717897831,-159.66912712,0.00042,2]
[320940569,1711717897843,-161.83598417,0.00042,2]
[320940570,1711717897854,-161.83598417,0.00042,2]
[320940571,1711717897863,-842.73,0.00050684,120]
[320940572,1711717897872,-556.19,0.00050684,120]
[320940573,1711717897882,-842.73,0.00050958,120]
[320940574,1711717897891,-556.19,0.00050958,120]
[320940575,1711717897901,-842.73,0.00051232,120]
[320940576,1711717897910,-556.19,0.00051232,120]
[320940577,1711717897919,-636.86147119,0.00051506,120]
[320940578,1711717897929,-556.19,0.00051506,120]
[320940579,1711717897938,-842.73,0.00051506,120]
[320940580,1711717897949,-1175.16,0.0005178,120]
[320940581,1711717897959,-556.19,0.0005178,120]
[320940582,1711717897969,-842.73,0.0005178,120]
[320940583,1711717897979,-1175.16,0.00052054,120]
[320940584,1711717897988,-556.19,0.00052054,120]
[320940585,1711717897997,-842.73,0.00052054,120]
[320940586,1711717898006,-1175.16,0.00052328,120]
[320940587,1711717898015,-842.73,0.00052328,120]
[320940588,1711717898024,-556.19,0.00052328,120]
[320940589,1711717898034,-1175.16,0.00052602,120]
[320940590,1711717898042,-842.73,0.00052602,120]
[320940591,1711717898052,-556.19,0.00052602,120]
[320940592,1711717898061,-1175.16,0.00052876,120]
[320940593,1711717898069,-842.73,0.00052876,120]
[320940594,1711717898079,-556.19,0.00052876,120]
[320940595,1711717898091,-1175.16,0.0005315,120]
[320940596,1711717898100,-1175.16,0.00053424,120]
[320940597,1711717898109,-1175.16,0.00053698,120]
[320940598,1711717898119,-508.91,0.00055068,120]
[320940599,1711717898128,-508.91,0.00055342,120]
[320940600,1711717898137,-508.97619718,0.00055616,120]
[320940601,1711717898145,-533.89085863,0.000625,2]
[320940602,1711717898154,-1318.19005954,0.0006251,120]
[320940603,1711717898163,-1318.19005954,0.00063009,120]
[320940604,1711717898172,-1318.19005954,0.00063508,120]
[320940605,1711717898181,-1318.19005954,0.00064006,120]
[320940606,1711717898191,-1318.19005954,0.00064505,120]
[320940607,1711717898200,-1318.19005954,0.00065004,120]
[320940608,1711717898210,-88658.82244282,0.000666,60]
[320940609,1711717898224,-3079.61179878,0.000666,60]
[320940610,1711717898241,-842.73,0.0005315,120]
[320940611,1711717898250,-13540.2031856,0.000666,60]
[320940612,1711717898263,-19732.6578045,0.000666,60]
[320940613,1711717898274,-3078.96845847,0.000666,60]
[320940614,1711717898560,-556.19,0.0005315,120]
[320940615,1711717898570,-842.73,0.00053424,120]
[320940616,1711717898580,-556.19,0.00053424,120]
[320940617,1711717898591,-842.73,0.00053698,120]
[320940618,1711717898601,-556.19,0.00053698,120]
[320940619,1711717898611,-332.811729,0.00053972,120]
[320940620,1711717898625,-408.42524737,0.00053972,120]
[320940621,1711717898637,-335.2637623,0.00053972,120]
[320940622,1711717898660,-0.98472253,0.00053972,120]
[320940623,1711717898679,-97.6745388,0.00053972,120]
[320940624,1711717898690,-757.3719419,0.00053972,120]
[320940625,1711717898708,-85.3580581,0.00053972,120]
[320940626,1711717898719,-436.66092462,0.00053972,120]
[320940627,1711717898730,-119.52907538,0.00053972,120]
[320940628,1711717898739,-181.85505455,0.00054246,120]
[320940629,1711717898758,-397.8131821,0.00054246,120]
[320940630,1711717899423,14305.13692585,0.00022743,2]
[320940631,1711717939692,477.69324998,0.00022743,2]
[320940632,1711717956028,300.0,0.00022908,2]
[320940637,1711717983430,155.0,0.00021606,2]
[320940642,1711718258407,1271.18697565,0.00042494,120]
[320940646,1711718617173,-1000.0,0.00023997,2]
[320940647,1711718617198,-1923.07231129,0.00023998,2]
[320940648,1711718617222,-224.05266408,0.00024,2]
[320940670,1711718993979,-224.01259758,0.00024,2]
[320940671,1711719008318,224.01259758,0.00024,2]
[320940684,1711719032397,-1000.0,0.00032999,4]
[320940685,1711719032407,-250.0,0.00033,3]
[320940686,1711719032416,-250.0,0.00043166,4]
[320940687,1711719032428,-992.20663566,0.00043166,4]
[320940688,1711719032440,-1710.68750836,0.00043166,4]
[320940689,1711719032450,-508.062287,0.00043174,3]
[320940690,1711719032459,-155.82,0.00046428,2]
[320940691,1711719032469,-779.96583637,0.000477,2]
[320940692,1711719032479,-150.84,0.00047803,2]
[320940693,1711719032489,-200.0,0.00047995,2]
[320940694,1711719032499,-186.92222222,0.00048,120]
[320940695,1711719032508,-2602.64,0.00048008,2]
[320940696,1711719032518,-280.8,0.00048008,2]
[320940697,1711719032527,-250.0,0.00048029,120]
[320940698,1711719032537,-250.0,0.00048057,120]
[320940699,1711719032546,-1530.93,0.00048143,60]
[320940700,1711719032556,-2884.23244952,0.00048159,4]
[320940701,1711719032568,-23900.0,0.0004816,2]
[320940702,1711719032578,-13027.57,0.00048174,2]
[320940703,1711719032588,-460.46411614,0.00048176,2]
[320940704,1711719032897,-39.53588386,0.00048176,2]
[320940705,1711719032907,-313.76411615,0.00048198,2]
[320940706,1711719032955,-269.55337969,0.00048198,2]
[320940707,1711719032967,-625.2997171,0.00048198,2]
[320940814,1711719038203,-392.98812847,0.00048159,4]
[320940815,1711719038213,-639.45278706,0.00048198,2]
[320940816,1711719038223,-156.81,0.00048316,15]
[320940817,1711719038233,-250.0,0.00048387,112]
[320940818,1711719038243,-150.99,0.00048387,2]
[320940819,1711719038253,-316.27,0.00048387,2]
[320940820,1711719038264,-535.08,0.00048415,2]
[320940821,1711719038274,-332.99,0.0004842,2]
[320940822,1711719038283,-1500.0,0.00048434,120]
[320940823,1711719038294,-4911.97,0.00048434,2]
[320940824,1711719038303,-320.06,0.00048448,120]
[320940825,1711719038314,-1852.42,0.00048504,2]
[320940826,1711719038324,-11900.0,0.00048517,2]
[320940827,1711719038334,-3494.84,0.00048569,2]
[320940828,1711719038345,-176.3,0.00048587,2]
[320940829,1711719038355,-186.92222222,0.00048603,120]
[320940830,1711719038365,-151.57,0.0004875,2]
[320940831,1711719038375,-1618.76,0.0004893,2]
[320940832,1711719038386,-3706.4411,0.00049112,2]
[320940833,1711719038395,-356.0462,0.00049114,2]
[320940834,1711719038405,-824.39019846,0.00049202,7]
[320940835,1711719038415,-824.39019846,0.00049202,7]
[320940836,1711719038425,-409.5973087,0.00049203,7]
[320940837,1711719038435,-409.5973087,0.00049203,7]
[320940838,1711719038445,-409.5973087,0.00049203,7]
[320940839,1711719038455,-824.39019846,0.00049203,7]
[320940840,1711719038465,-824.39019846,0.00049203,7]
[320940841,1711719038476,-824.39019846,0.00049203,7]
[320940842,1711719038487,-824.39019846,0.00049203,7]
[320940843,1711719038760,-824.39019846,0.00049203,7]
[320940844,1711719038770,-824.39019846,0.00049203,7]
[320940845,1711719038779,-824.39019846,0.00049203,7]
[320940846,1711719038789,-824.39019846,0.00049203,7]
[320940847,1711719038798,-824.39019846,0.00049203,7]
[320940848,1711719038808,-409.5973087,0.00049204,7]
[320940849,1711719038822,-409.5973087,0.00049204,7]
[320940850,1711719038832,-409.5973087,0.00049204,7]
[320940851,1711719038848,-409.5973087,0.00049204,7]
[320940852,1711719038863,-824.39019846,0.00049204,7]
[320940853,1711719038874,-824.39019846,0.00049204,7]
[320940854,1711719038885,-824.39019846,0.00049204,7]
[320940855,1711719038896,-824.39019846,0.00049204,7]
[320940856,1711719038906,-824.39019846,0.00049204,7]
[320940857,1711719038916,-824.39019846,0.00049204,7]
[320940858,1711719038926,-824.39019846,0.00049204,7]
[320940859,1711719038937,-409.5973087,0.00049205,7]
[320940860,1711719038946,-186.92222222,0.00049205,120]
[320940861,1711719038956,-19790.30001,0.00049212,30]
[320940862,1711719038965,-13656.4996,0.00049213,2]
[320940863,1711719038975,-9999.99,0.00049214,2]
[320940864,1711719038984,-150.99,0.00049214,10]
[320940865,1711719038995,-499.99,0.00049214,2]
[320940866,1711719039008,-151.57,0.00049258,2]
[320940867,1711719039018,-409.5973087,0.00049265,7]
[320940868,1711719039027,-824.39019846,0.00049283,7]
[320940869,1711719039037,-409.5973087,0.00049283,7]
[320940870,1711719039047,-824.39019846,0.00049285,7]
[320940871,1711719039056,-409.5973087,0.00049293,7]
[320940872,1711719039069,-409.5973087,0.00049293,7]
[320940873,1711719039080,-409.5973087,0.00049293,7]
[320940874,1711719039089,-824.39019846,0.00049293,7]
[320940875,1711719039098,-824.39019846,0.00049293,7]
[320940876,1711719039107,-409.5973087,0.00049295,7]
[320940877,1711719039116,-409.5973087,0.00049295,7]
[320940878,1711719039125,-409.5973087,0.00049295,7]
[320940879,1711719039134,-409.5973087,0.00049295,7]
[320940880,1711719039144,-824.39019846,0.00049295,7]
[320940881,1711719039153,-409.5973087,0.00049303,7]
[320940882,1711719039162,-409.5973087,0.00049303,7]
[320940883,1711719039171,-409.5973087,0.00049303,7]
[320940884,1711719039181,-409.5973087,0.00049303,7]
[320940885,1711719039190,-409.5973087,0.00049303,7]
[320940886,1711719039200,-409.5973087,0.00049303,7]
[320940887,1711719039209,-824.39019846,0.00049303,7]
[320940888,1711719039218,-409.5973087,0.00049305,7]
[320940889,1711719039227,-409.5973087,0.00049305,7]
[320940890,1711719039237,-409.5973087,0.00049305,7]
[320940891,1711719039246,-409.5973087,0.00049305,7]
[320940892,1711719039256,-409.5973087,0.00049305,7]